fUSD/lending_fUSD_20250504
["ID","MTS","AMOUNT","RATE_DAILY","PERIOD"]
[359823813,1746359471933,-34498.85,0.00019945,2]
[359823814,1746359471943,-151.0,0.00019945,2]
[359823815,1746359471953,-841.66,0.00019945,2]
[359823816,1746359471963,-450.0,0.00019945,2]
[359823817,1746359471972,-968.24,0.00019945,2]
[359823818,1746359471983,-1855.43,0.00019945,2]
[359823819,1746359471992,-462.5,0.00019945,2]
[359823820,1746359472002,-8386.62,0.00019945,2]
[359823821,1746359472011,-450.0,0.00019945,2]
[359823822,1746359472020,-700.48,0.00019945,2]
[359823823,1746359472030,-5710.89,0.00019945,2]
[359823824,1746359472039,-450.0,0.00019945,2]
[359823825,1746359472048,-151.0,0.00019945,2]
[359823826,1746359472057,-661.6,0.00019945,2]
[359823827,1746359472066,-2167.82,0.00019945,2]
[359823828,1746359472076,-217.035991,0.00019945,2]
[359823829,1746359472085,-494.48,0.00019945,2]
[359823830,1746359472096,-52939.37,0.00019945,2]
[359823831,1746359472105,-4858.42764494,0.00019952,2]
[359823832,1746359472115,-753.18764553,0.00019955,2]
[359823833,1746359472125,-1713.20562814,0.00019955,2]
[359823834,1746359472134,-982.75287446,0.0001997,2]
[359823835,1746359472143,-831.78,0.00019971,2]
[359823836,1746359472152,-500.0,0.00019971,2]
[359823837,1746359472161,-300.0,0.00019971,2]
[359823838,1746359472171,-1806.5,0.00019971,2]
[359823839,1746359472180,-18719.15822361,0.00019971,2]
[359823840,1746359472190,-450.0,0.00019972,2]
[359823841,1746359472199,-450.0,0.00019972,2]
[359823842,1746359472209,-450.0,0.00019972,2]
[359823843,1746359472218,-450.0,0.00019972,2]
[359823844,1746359472228,-450.0,0.00019972,2]
[359823845,1746359472237,-450.0,0.00019972,2]
[359823846,1746359472247,-884.01,0.00019972,2]
[359823847,1746359472256,-450.0,0.00019972,2]
[359823848,1746359472265,-450.0,0.00019972,2]
[359823849,1746359472274,-450.0,0.00019972,2]
[359823850,1746359472283,-564.14,0.00019972,2]
[359823851,1746359472292,-450.0,0.00019972,2]
[359823852,1746359472301,-450.0,0.00019972,2]
[359823853,1746359472310,-485.4,0.00019972,2]
[359823854,1746359472319,-657.67,0.00019972,2]
[359823855,1746359472328,-587.24,0.00019972,2]
[359823856,1746359472338,-542.57,0.00019972,2]
[359823857,1746359472347,-450.0,0.00019972,2]
[359823858,1746359472357,-450.0,0.00019972,2]
[359823859,1746359472368,-377.65237577,0.00019972,2]
[359823860,1746359472378,-450.0,0.00019972,2]
[359823861,1746359472387,-200.28,0.00019972,2]
[359823862,1746359472396,-450.0,0.00019972,2]
[359823863,1746359472406,-430.8,0.00019972,2]
[359823864,1746359472417,-1239.1,0.00019972,2]
[359823865,1746359472426,-624.17,0.00019972,2]
[359823866,1746359472435,-795.62,0.00019972,2]
[359823867,1746359472445,-1221.77,0.00019972,2]
[359823868,1746359472454,-450.0,0.00019972,2]
[359823869,1746359472463,-450.0,0.00019972,2]
[359823870,1746359472472,-151.0,0.00019972,2]
[359823871,1746359472625,-151.0,0.00019972,2]
[359823872,1746359472635,-151.0,0.00019972,2]
[359823873,1746359472644,-151.0,0.00019972,2]
[359823874,1746359472655,-3138.38,0.00019972,2]
[359823875,1746359472665,-362.58754737,0.00019972,2]
[359823876,1746359472674,-151.0,0.00019972,2]
[359823877,1746359472684,-450.0,0.00019972,2]
[359823878,1746359472693,-1070.11,0.00019972,2]
[359823879,1746359472703,-151.0,0.00019972,2]
[359823880,1746359472712,-151.0,0.00019972,2]
[359823881,1746359472722,-435.794612,0.00019972,2]
[359823882,1746359472733,-1073.06,0.00019972,2]
[359823883,1746359472743,-435.794612,0.00019972,2]
[359823884,1746359472752,-294.35118373,0.00019972,2]
[359823885,1746359472761,-450.0,0.00019972,2]
[359823886,1746359472771,-450.0,0.00019972,2]
[359823887,1746359472780,-857.72,0.00019972,2]
[359823888,1746359472789,-450.0,0.00019972,2]
[359823889,1746359472799,-450.0,0.00019972,2]
[359823890,1746359472808,-2941.44,0.00019972,2]
[359823891,1746359472818,-1162.75,0.00019972,2]
[359823892,1746359472827,-450.0,0.00019972,2]
[359823893,1746359472836,-562.76,0.00019972,2]
[359823894,1746359472846,-1159.98,0.00019972,2]
[359823895,1746359472855,-450.0,0.00019972,2]
[359823896,1746359472865,-765.13,0.00019972,2]
[359823897,1746359472874,-533.18,0.00019972,2]
[359823898,1746359472884,-450.0,0.00019972,2]
[359823899,1746359472893,-3050.62,0.00019972,2]
[359823900,1746359472903,-240.98268893,0.00019972,2]
[359823901,1746359472912,-683.7,0.00019972,2]
[359823902,1746359472922,-450.0,0.00019972,2]
[359823903,1746359472932,-603.46,0.00019972,2]
[359823904,1746359472941,-2117.72,0.00019972,2]
[359823905,1746359472951,-625.72,0.00019972,2]
[359823906,1746359472960,-1742.76,0.00019972,2]
[359823907,1746359472969,-3548.84,0.00019972,2]
[359823908,1746359472978,-450.0,0.00019972,2]
[359823909,1746359472988,-450.0,0.00019972,2]
[359823910,1746359472997,-573.03,0.00019972,2]
[359823911,1746359473007,-588.79,0.00019972,2]
[359823912,1746359473016,-418.69,0.00019972,2]
[359823913,1746359473025,-1790.88,0.00019972,2]
[359823914,1746359473035,-573.15,0.00019972,2]
[359823915,1746359473045,-34498.85,0.00019972,2]
[359823916,1746359473054,-841.66,0.00019972,2]
[359823917,1746359473063,-450.0,0.00019972,2]
[359823918,1746359473072,-968.24,0.00019972,2]
[359823919,1746359473082,-1855.43,0.00019972,2]
[359823920,1746359473091,-462.5,0.00019972,2]
[359823921,1746359473100,-8386.62,0.00019972,2]
[359823922,1746359473110,-326.39,0.00019972,2]
[359823923,1746359473119,-700.48,0.00019972,2]
[359823924,1746359473128,-5710.89,0.00019972,2]
[359823925,1746359473138,-355.5012553,0.00019972,2]
[359823926,1746359473147,-661.6,0.00019972,2]
[359823927,1746359473156,-2167.82,0.00019972,2]
[359823928,1746359473165,-151.0,0.00019972,2]
[359823929,1746359473174,-494.48,0.00019972,2]
[359823930,1746359473183,-52939.37,0.00019972,2]
[359823931,1746359473192,-300.0,0.00019973,2]
[359823932,1746359473202,-1300.0,0.00019974,2]
[359823933,1746359473211,-925.0,0.00019974,2]
[359823934,1746359473221,-797.0,0.00019974,2]
[359823935,1746359473231,-1208.0,0.00019974,2]
[359823936,1746359473240,-550.0,0.00019974,2]
[359823937,1746359473249,-915.0,0.00019974,2]
[359823938,1746359473259,-581.0,0.00019974,2]
[359823939,1746359473268,-1657.0,0.00019974,2]
[359823940,1746359473277,-1451.0,0.00019974,2]
[359823941,1746359473287,-878.0,0.00019974,2]
[359823942,1746359473296,-186.621,0.00019974,2]
[359823943,1746359473306,-272.379,0.00019974,2]
[359823944,1746359473315,-2159.0,0.00019974,2]
[359823945,1746359473324,-4010.0,0.00019974,2]
[359823946,1746359473333,-878.0,0.00019974,2]
[359823947,1746359473342,-6759.0,0.00019974,2]
[359823948,1746359473351,-500.0,0.00019979,2]
[359823949,1746359473361,-500.0,0.00019979,2]
[359823950,1746359473373,-500.0,0.00019979,2]
[359823951,1746359473383,-500.0,0.00019979,2]
[359823952,1746359473392,-300.0,0.00019979,2]
[359823953,1746359473401,-1806.5,0.00019979,2]
[359823954,1746359473411,-1806.5,0.00019979,2]
[359823955,1746359473420,-420321.32739719,0.0001998,2]
[359823956,1746359473429,-154.600672,0.0001998,2]
[359823957,1746359473439,-185.224753,0.0001998,2]
[359823958,1746359473450,-151.0,0.0001998,2]
[359823959,1746359473459,-185.224753,0.0001998,2]
[359823960,1746359473469,-151.0,0.0001998,2]
[359823961,1746359473478,-151.0,0.0001998,2]
[359823962,1746359473487,-151.0,0.0001998,2]
[359823963,1746359473497,-151.0,0.0001998,2]
[359823964,1746359473506,-170.156899,0.0001998,2]
[359823965,1746359473516,-170.156899,0.0001998,2]
[359823966,1746359473526,-151.0,0.0001998,2]
[359823967,1746359473535,-151.0,0.0001998,2]
[359823968,1746359473544,-324.036252,0.0001998,2]
[359823969,1746359473555,-324.036252,0.0001998,2]
[359823970,1746359473564,-151.0,0.0001998,2]
[359823971,1746359473573,-151.0,0.0001998,2]
[359823972,1746359473582,-151.0,0.0001998,2]
[359823973,1746359473591,-151.0,0.0001998,2]
[359823974,1746359473600,-151.0,0.0001998,2]
[359823975,1746359473609,-151.0,0.0001998,2]
[359823976,1746359473619,-151.0,0.0001998,2]
[359823977,1746359473628,-151.0,0.0001998,2]
[359823978,1746359473638,-175.987321,0.0001998,2]
[359823979,1746359473647,-151.0,0.0001998,2]
[359823980,1746359473656,-151.0,0.0001998,2]
[359823981,1746359473666,-240.034319,0.0001998,2]
[359823982,1746359473675,-151.0,0.0001998,2]
[359823983,1746359473684,-246.353076,0.0001998,2]
[359823984,1746359473693,-151.0,0.0001998,2]
[359823985,1746359473702,-151.0,0.0001998,2]
[359823986,1746359473712,-151.0,0.0001998,2]
[359823987,1746359473723,-435.794612,0.0001998,2]
[359823988,1746359473732,-248.771419,0.0001998,2]
[359823989,1746359473742,-435.794612,0.0001998,2]
[359823990,1746359473752,-151.0,0.0001998,2]
[359823991,1746359473762,-248.771419,0.0001998,2]
[359823992,1746359473772,-151.0,0.0001998,2]
[359823993,1746359473782,-170.065085,0.0001998,2]
[359823994,1746359473792,-151.0,0.0001998,2]
[359823995,1746359473802,-151.0,0.0001998,2]
[359823996,1746359473811,-170.065085,0.0001998,2]
[359823997,1746359473820,-164.035041,0.0001998,2]
[359823998,1746359473830,-151.0,0.0001998,2]
[359823999,1746359473839,-151.0,0.0001998,2]
[359824000,1746359473849,-159.027064,0.0001998,2]
[359824001,1746359473858,-151.0,0.0001998,2]
[359824002,1746359473868,-153.687788,0.0001998,2]
[359824003,1746359473878,-159.027064,0.0001998,2]
[359824004,1746359473889,-151.0,0.0001998,2]
[359824005,1746359473899,-153.687788,0.0001998,2]
[359824006,1746359473908,-151.0,0.0001998,2]
[359824007,1746359473918,-151.0,0.0001998,2]
[359824008,1746359473929,-204.240884,0.0001998,2]
[359824009,1746359473938,-151.0,0.0001998,2]
[359824010,1746359473947,-151.0,0.0001998,2]
[359824011,1746359473957,-151.0,0.0001998,2]
[359824012,1746359473967,-151.0,0.0001998,2]
[359824013,1746359473976,-151.0,0.0001998,2]
[359824014,1746359473985,-151.0,0.0001998,2]
[359824015,1746359473995,-151.0,0.0001998,2]
[359824016,1746359474004,-262.383173,0.0001998,2]
[359824017,1746359474013,-151.0,0.0001998,2]
[359824018,1746359474022,-322.854706,0.0001998,2]
[359824019,1746359474031,-151.0,0.0001998,2]
[359824020,1746359474043,-322.854706,0.0001998,2]
[359824021,1746359474053,-151.0,0.0001998,2]
[359824022,1746359474063,-151.0,0.0001998,2]
[359824023,1746359474072,-151.0,0.0001998,2]
[359824024,1746359474081,-151.0,0.0001998,2]
[359824025,1746359474090,-12062.96046788,0.00019982,2]
[359824026,1746359474099,-831.78,0.00019985,2]
[359824027,1746359474108,-831.78,0.00019985,2]
[359824028,1746359474118,-831.78,0.00019985,2]
[359824029,1746359474127,-500.0,0.00019985,2]
[359824030,1746359474136,-500.0,0.00019985,2]
[359824031,1746359474145,-511.83843119,0.00019985,2]
[359824032,1746359474154,-500.0,0.00019985,2]
[359824033,1746359474165,-500.0,0.00019985,2]
[359824034,1746359474174,-1806.5,0.00019985,2]
[359824035,1746359474183,-152.151952,0.00019986,2]
[359824036,1746359474192,-328.86,0.00019986,2]
[359824037,1746359474201,-328.86,0.00019986,2]
[359824038,1746359474210,-157.713637,0.00019986,2]
[359824039,1746359474220,-163.215413,0.00019986,2]
[359824040,1746359474230,-151.0,0.00019986,2]
[359824041,1746359474238,-151.0,0.00019986,2]
[359824042,1746359474247,-151.0,0.00019986,2]
[359824043,1746359474258,-159.748126,0.00019986,2]
[359824044,1746359474267,-151.0,0.00019986,2]
[359824045,1746359474276,-151.0,0.00019986,2]
[359824046,1746359474285,-151.0,0.00019986,2]
[359824047,1746359474295,-151.0,0.00019986,2]
[359824048,1746359474304,-151.0,0.00019986,2]
[359824049,1746359474313,-982.75287446,0.0001999,2]
[359824050,1746359474322,-300.0,0.00019999,2]
[359824051,1746359474331,-500.0,0.00019999,2]
[359824052,1746359474339,-500.0,0.00019999,2]
[359824053,1746359474348,-638.92218838,0.00019999,2]
[359824054,1746359474357,-500.0,0.00019999,2]
[359824055,1746359474368,-679.71892541,0.00019999,2]
[359824056,1746359474378,-500.0,0.00019999,2]
[359824057,1746359474387,-500.0,0.00019999,2]
[359824058,1746359474396,-831.78,0.00019999,2]
[359824059,1746359474407,-831.78,0.00019999,2]
[359824060,1746359474416,-831.78,0.00019999,2]
[359824061,1746359474425,-831.78,0.00019999,2]
[359824062,1746359474435,-831.78,0.00019999,2]
[359824063,1746359474445,-831.78,0.00019999,2]
[359824064,1746359474455,-831.78,0.00019999,2]
[359824065,1746359474464,-831.78,0.00019999,2]
[359824066,1746359474473,-831.78,0.00019999,2]
[359824067,1746359474483,-831.78,0.00019999,2]
[359824068,1746359474492,-831.78,0.00019999,2]
[359824069,1746359474501,-831.78,0.00019999,2]
[359824070,1746359474511,-831.89951746,0.00019999,2]
[359824071,1746359474520,-500.0,0.00019999,2]
[359824072,1746359474529,-500.0,0.00019999,2]
[359824073,1746359474538,-587.97322185,0.00019999,2]
[359824074,1746359474548,-500.0,0.00019999,2]
[359824075,1746359474557,-500.0,0.00019999,2]
[359824076,1746359474567,-500.0,0.00019999,2]
[359824077,1746359474576,-500.0,0.00019999,2]
[359824078,1746359474586,-500.0,0.00019999,2]
[359824079,1746359474594,-192.3518044,0.00019999,2]
[359824080,1746359474603,-1806.5,0.00019999,2]
[359824081,1746359474612,-1806.5,0.00019999,2]
[359824082,1746359474622,-1806.5,0.00019999,2]
[359824083,1746359474631,-1806.5,0.00019999,2]
[359824084,1746359474640,-1806.5,0.00019999,2]
[359824085,1746359474651,-1806.5,0.00019999,2]
[359824086,1746359474660,-1806.5,0.00019999,2]
[359824087,1746359474669,-1806.5,0.00019999,2]
[359824088,1746359474678,-1806.5,0.00019999,2]
[359824089,1746359474687,-1806.5,0.00019999,2]
[359824090,1746359474696,-1806.68049907,0.00019999,2]
[359824091,1746359474705,-1002.2849,0.00019999,2]
[359824092,1746359474715,-615.95992388,0.00019999,2]
[359824093,1746359474724,-158690.39301328,0.00019999,2]
[359824094,1746359474747,-2451.938759,0.00019999,2]
[359824095,1746359480826,-3.925e-05,0.00019626,2]
[359824096,1746359481027,-1790.025,0.00019626,2]
[359824097,1746359481038,-5676.54905495,0.00019626,2]
[359824098,1746359481771,-234.05667763,0.00019626,2]
[359824099,1746359482514,-234.05667763,0.00019626,2]
[359824100,1746359483198,-234.05667763,0.00019626,2]
[359824103,1746359625354,250.0,0.00018788,2]
[359824104,1746359651798,188.69,0.00019323,2]
[359824105,1746359688541,-250.0,0.00019525,2]
[359824106,1746359706748,166.141039,0.0003,31]
[359824107,1746359785472,157.94,0.00018761,2]
[359824108,1746359785679,157.94,0.00028141,120]
[359824109,1746359866046,1036.14,0.00016806,2]
[359824110,1746359866421,1036.14,0.00019069,2]
[359824111,1746359894087,152.75,0.0001873,2]
[359824112,1746359978276,23900.0,0.00018735,2]
[359824113,1746360022323,170.7393119,0.00019425,2]
[359824114,1746360062474,1000.0,0.00018694,2]
[359824115,1746360098462,250.0,0.00017,2]
[359824116,1746360099585,300.0,0.00019,2]
[359824120,1746360261637,-151.0,0.00019525,2]
[359824121,1746360261663,-200.0,0.00019525,2]
[359824122,1746360261688,-371.9524,0.00019526,2]
[359824123,1746360261712,-1000.0,0.00019526,2]
[359824124,1746360261736,-1200.0,0.00019575,2]
[359824125,1746360261760,-207.4,0.00019614,2]
[359824126,1746360261784,-300.0,0.00019615,2]
[359824127,1746360261818,-500.0,0.00019623,2]
[359824128,1746360261848,-500.0,0.00019623,2]
[359824129,1746360261879,-500.0,0.00019623,2]
[359824130,1746360261908,-500.0,0.00019623,2]
[359824131,1746360261937,-500.0,0.00019623,2]
[359824132,1746360261967,-500.0,0.00019623,2]
[359824133,1746360261997,-500.0,0.00019623,2]
[359824134,1746360262028,-500.0,0.00019623,2]
[359824135,1746360262058,-500.0,0.00019623,2]
[359824136,1746360262088,-500.0,0.00019623,2]
[359824137,1746360262117,-500.0,0.00019623,2]
[359824138,1746360262148,-500.0,0.00019623,2]
[359824139,1746360262178,-500.0,0.00019623,2]
[359824140,1746360262209,-500.0,0.00019623,2]
[359824141,1746360262238,-500.0,0.00019623,2]
[359824142,1746360262267,-500.0,0.00019623,2]
[359824143,1746360262296,-500.0,0.00019623,2]
[359824144,1746360262326,-500.0,0.00019623,2]
[359824145,1746360262355,-500.0,0.00019623,2]
[359824146,1746360262384,-500.0,0.00019623,2]
[359824147,1746360262415,-500.0,0.00019623,2]
[359824148,1746360262444,-500.0,0.00019623,2]
[359824149,1746360262472,-500.0,0.00019623,2]
[359824150,1746360262502,-500.0,0.00019623,2]
[359824151,1746360262532,-500.0,0.00019623,2]
[359824152,1746360262561,-500.0,0.00019623,2]
[359824153,1746360262589,-500.0,0.00019623,2]
[359824154,1746360262618,-500.0,0.00019623,2]
[359824155,1746360262648,-500.0,0.00019623,2]
[359824156,1746360262679,-500.24115765,0.00019623,2]
[359824157,1746360262712,-500.0,0.00019623,2]
[359824158,1746360262741,-500.0,0.00019623,2]
[359824159,1746360262770,-500.0,0.00019623,2]
[359824160,1746360262803,-500.0,0.00019623,2]
[359824161,1746360262832,-500.0,0.00019623,2]
[359824162,1746360262863,-500.0,0.00019623,2]
[359824163,1746360262895,-500.0,0.00019623,2]
[359824164,1746360262926,-500.0,0.00019623,2]
[359824165,1746360262957,-500.0,0.00019623,2]
[359824166,1746360262989,-500.0,0.00019623,2]
[359824167,1746360263020,-500.0,0.00019623,2]
[359824168,1746360263052,-500.0,0.00019623,2]
[359824169,1746360263084,-500.0,0.00019623,2]
[359824170,1746360263115,-500.0,0.00019623,2]
[359824171,1746360263146,-500.0,0.00019623,2]
[359824172,1746360263177,-500.0,0.00019623,2]
[359824173,1746360263207,-500.0,0.00019623,2]
[359824174,1746360263238,-500.0,0.00019623,2]
[359824175,1746360263269,-500.0,0.00019623,2]
[359824176,1746360263300,-500.0,0.00019623,2]
[359824177,1746360263331,-200.0,0.00019623,2]
[359824178,1746360263363,-500.0,0.00019623,2]
[359824179,1746360263393,-500.0,0.00019623,2]
[359824180,1746360263424,-500.0,0.00019623,2]
[359824181,1746360263456,-500.0,0.00019623,2]
[359824182,1746360263487,-500.0,0.00019623,2]
[359824183,1746360263517,-500.0,0.00019623,2]
[359824184,1746360263547,-500.0,0.00019623,2]
[359824185,1746360263576,-500.0,0.00019623,2]
[359824186,1746360263605,-500.0,0.00019623,2]
[359824187,1746360263635,-500.0,0.00019623,2]
[359824188,1746360263665,-500.0,0.00019623,2]
[359824189,1746360263694,-500.0,0.00019623,2]
[359824190,1746360263718,-1000.06042086,0.00019626,2]
[359824191,1746360263741,-161.33345751,0.00019626,2]
[359824192,1746360263764,-128154.38927291,0.00019626,2]
[359824193,1746360263795,-2731.7568,0.00019626,2]
[359824194,1746360263818,-2500.0,0.00019626,2]
[359824195,1746360263842,-5747.97558331,0.00019638,2]
[359824196,1746360263870,-1000.06042077,0.00019656,2]
[359824197,1746360263893,-167.53545799,0.0001968,2]
[359824198,1746360263918,-161.33345751,0.00019681,2]
[359824199,1746360263942,-1000.06042077,0.00019687,2]
[359824200,1746360263966,-195.68333523,0.00019708,2]
[359824201,1746360263989,-151.0,0.00019714,2]
[359824202,1746360264024,-668.65185757,0.00019714,2]
[359824203,1746360264055,-907.16,0.00019716,2]
[359824204,1746360264085,-1000.06042077,0.00019717,2]
[359824205,1746360264119,-450.0,0.00019726,2]
[359824206,1746360264150,-450.0,0.00019726,2]
[359824207,1746360264181,-450.0,0.00019726,2]
[359824208,1746360264211,-450.0,0.00019726,2]
[359824209,1746360264238,-497.16964433,0.00019726,2]
[359824210,1746360264270,-450.0,0.00019726,2]
[359824211,1746360264301,-450.0,0.00019726,2]
[359824212,1746360264332,-450.0,0.00019726,2]
[359824213,1746360264364,-450.0,0.00019726,2]
[359824214,1746360264395,-450.0,0.00019726,2]
[359824215,1746360264428,-481.77396082,0.00019726,2]
[359824216,1746360264459,-450.0,0.00019726,2]
[359824217,1746360264488,-450.0,0.00019726,2]
[359824218,1746360264518,-450.0,0.00019726,2]
[359824219,1746360264549,-450.0,0.00019726,2]
[359824220,1746360264577,-450.0,0.00019726,2]
[359824221,1746360264606,-450.0,0.00019726,2]
[359824222,1746360264632,-471.77946675,0.00019726,2]
[359824223,1746360264661,-450.0,0.00019726,2]
[359824224,1746360264691,-483.44313905,0.00019726,2]
[359824225,1746360264715,-450.0,0.00019726,2]
[359824226,1746360264742,-507.90343791,0.00019726,2]
[359824227,1746360264773,-450.0,0.00019726,2]
[359824228,1746360264803,-450.0,0.00019726,2]
[359824229,1746360264829,-450.0,0.00019726,2]
[359824230,1746360264857,-476.27313817,0.00019726,2]
[359824231,1746360264884,-450.0,0.00019726,2]
[359824232,1746360264914,-526.31390743,0.00019726,2]
[359824233,1746360264942,-450.0,0.00019726,2]
[359824234,1746360264970,-500.0,0.00019726,2]
[359824235,1746360264999,-500.0,0.00019726,2]
[359824236,1746360265027,-450.0,0.00019726,2]
[359824237,1746360265056,-450.0,0.00019726,2]
[359824238,1746360265083,-511.14978125,0.00019726,2]
[359824239,1746360265111,-450.0,0.00019726,2]
[359824240,1746360265139,-450.0,0.00019726,2]
[359824241,1746360265167,-450.0,0.00019726,2]
[359824242,1746360265195,-450.0,0.00019726,2]
[359824243,1746360265224,-539.26885921,0.00019726,2]
[359824244,1746360265253,-450.0,0.00019726,2]
[359824245,1746360265281,-450.0,0.00019726,2]
[359824246,1746360265309,-479.93286349,0.00019726,2]
[359824247,1746360265337,-450.0,0.00019726,2]
[359824248,1746360265365,-450.0,0.00019726,2]
[359824249,1746360265392,-450.0,0.00019726,2]
[359824250,1746360265418,-450.0,0.00019726,2]
[359824251,1746360265446,-450.0,0.00019726,2]
[359824252,1746360265473,-476.4633383,0.00019726,2]
[359824253,1746360265501,-468.64426461,0.00019726,2]
[359824254,1746360265528,-450.0,0.00019726,2]
[359824255,1746360265555,-450.0,0.00019726,2]
[359824256,1746360265583,-450.0,0.00019726,2]
[359824257,1746360265611,-450.0,0.00019726,2]
[359824258,1746360265639,-450.0,0.00019726,2]
[359824259,1746360265667,-450.0,0.00019726,2]
[359824260,1746360265697,-220.55746632,0.00019726,2]
[359824261,1746360265725,-450.0,0.00019726,2]
[359824262,1746360265752,-450.0,0.00019726,2]
[359824263,1746360265782,-453.79042884,0.00019726,2]
[359824264,1746360265809,-484.82103318,0.00019726,2]
[359824265,1746360265838,-450.0,0.00019726,2]
[359824266,1746360265868,-473.19848637,0.00019726,2]
[359824267,1746360265894,-450.0,0.00019726,2]
[359824268,1746360265922,-450.0,0.00019726,2]
[359824269,1746360265949,-450.0,0.00019726,2]
[359824270,1746360265978,-450.0,0.00019726,2]
[359824271,1746360266005,-388.30674961,0.00019726,2]
[359824272,1746360266032,-450.0,0.00019726,2]
[359824273,1746360266059,-486.41,0.00019726,2]
[359824274,1746360266086,-500.0,0.00019726,2]
[359824275,1746360266112,-528.76617119,0.00019726,2]
[359824276,1746360266139,-450.0,0.00019726,2]
[359824277,1746360266167,-450.0,0.00019726,2]
[359824278,1746360266194,-462.41357313,0.00019726,2]
[359824279,1746360266221,-365.249561,0.00019726,2]
[359824280,1746360266248,-450.0,0.00019726,2]
[359824281,1746360266276,-450.0,0.00019726,2]
[359824282,1746360266302,-500.0,0.00019726,2]
[359824283,1746360266329,-450.0,0.00019726,2]
[359824284,1746360266652,-450.0,0.00019726,2]
[359824285,1746360266690,-450.0,0.00019726,2]
[359824286,1746360266715,-450.0,0.00019726,2]
[359824287,1746360266740,-450.0,0.00019726,2]
[359824288,1746360266764,-450.0,0.00019726,2]
[359824289,1746360266792,-450.0,0.00019726,2]
[359824290,1746360266816,-450.0,0.00019726,2]
[359824291,1746360266842,-450.0,0.00019726,2]
[359824292,1746360266869,-512.49471322,0.00019726,2]
[359824293,1746360266893,-450.0,0.00019726,2]
[359824294,1746360266918,-450.0,0.00019726,2]
[359824295,1746360266943,-450.0,0.00019726,2]
[359824296,1746360266967,-450.0,0.00019726,2]
[359824297,1746360266991,-450.0,0.00019726,2]
[359824298,1746360267015,-508.86567186,0.00019726,2]
[359824299,1746360267039,-450.0,0.00019726,2]
[359824300,1746360267064,-450.0,0.00019726,2]
[359824301,1746360267088,-450.0,0.00019726,2]
[359824302,1746360267113,-450.0,0.00019726,2]
[359824303,1746360267138,-450.0,0.00019726,2]
[359824304,1746360267162,-450.0,0.00019726,2]
[359824305,1746360267187,-450.0,0.00019726,2]
[359824306,1746360267210,-453.4022161,0.00019726,2]
[359824307,1746360267235,-450.0,0.00019726,2]
[359824308,1746360267258,-450.0,0.00019726,2]
[359824309,1746360267281,-193.96713815,0.00019726,2]
[359824310,1746360267305,-450.0,0.00019726,2]
[359824311,1746360267330,-450.0,0.00019726,2]
[359824312,1746360267353,-450.0,0.00019726,2]
[359824313,1746360267376,-450.0,0.00019726,2]
[359824314,1746360267398,-479.21627206,0.00019726,2]
[359824315,1746360267421,-450.0,0.00019726,2]
[359824316,1746360267444,-450.0,0.00019726,2]
[359824317,1746360267467,-479.20537631,0.00019726,2]